Workbook

Sheet Start
B1: Over de sjabloon
B2: Blijf op de hoogte van uw maandelijkse uitgaven en besparingen met behulp van deze sjabloon.
B3: Voer de details van de Onkosten en het Maandelijks Inkomen in de tabel om de Besparingen te berekenen.
B4: Ringdiagram met onkosten en besparingen wordt automatisch bijgewerkt.
B5: Opmerking:
B6: Aanvullende instructies zijn opgenomen in kolom A van het BUDGETWIEL-werkblad. Deze tekst is opzettelijk verborgen. Om tekst te verwijderen selecteert u eerst kolom A en vervolgens VERWIJDEREN. Om de tekst niet langer te verbergen selecteert u eerst kolom A en wijzigt u vervolgens de kleur van het lettertype.
B7: Als u meer wilt weten over de tabel, drukt u op SHIFT en vervolgens op F10 binnen de tabel. Daarna selecteert u de optie TABEL en dan ALTERNATIEVE TEKST.

Sheet Budgetwiel
A1: Maak een budgetwiel op dit werkblad. De titel van het werkblad staat in de cel rechts en de info in cel D1. Andere handige instructies voor het gebruik van dit werkblad staan ​​in cellen in deze kolom. Druk op de pijl die naar beneden wijst om aan de slag te gaan. | B1: Budgetwiel | D1: Vul de tabel in deze sjabloon in. De grafiek geeft uw maandelijkse uitgaven weer in verhouding tot uw maandelijkse inkomen. Het berekent ook de percentages om u te laten zien hoeveel u bespaart/heeft bespaard.
A2: Het label Maandelijks Inkomen staat in de cel rechts, het ringdiagram dat onkosten en besparingen toont staat in cel C2 en het label Hoeveelheid Besparingen staat in cel G2. | B2: Maandelijks Inkomen | C2: Ringdiagram dat het onkosten- en besparingspercentage toont bevindt zich in deze cel. | G2: Hoeveelheid Besparingen
A3: Voer het Maandelijks Inkomen in de cel rechts in. De Hoeveelheid Besparingen wordt automatisch berekend in cel G3. De volgende instructie staat in cel A6. | B3: $5,738 | G3: =Savings -> $2,777
G4: Waarde automatisch berekend
A6: Voer details in de Onkostentabel die begint in de cel rechts. | B6: Onkosten | C6: Categorie | D6: Hoeveelheid | E6: Frequentie | F6: Maandbedrag | G6: % van Totaal
B7: Verzekering | C7: Transport | D7: $300 | E7: Om de 6 maanden | F7: =IF(Expenses[Amount]>0,IF(Expenses[Frequency]<>"",ROUND(IF(Expenses[Frequency]="Maandelijks",Expenses[Amount],IF(Expenses[Frequency]="Wekelijks",Expenses[Amount]*4,IF(Expenses[Frequency]="Per kwartaal",Expenses[Amount]/3,IF(Expenses[Frequency]="Om de 6 maanden",Expenses[Amount]/6,IF(Expenses[Frequency]="Jaarlijks",Expenses[Amount]/12,IF(Expenses[Frequency]="Twee-wekelijks",Expenses[Amount]*2,IF(Expenses[Frequency]="Twee-maandelijks",Expenses[Amount]/2,""))))))),0),""),"") -> $50 | G7: =IF(Expenses[Monthly Amount]<>"",Expenses[Monthly Amount]/Income,"") -> 1%
B8: Gas | C8: Transport | D8: $25 | E8: Wekelijks | F8: =IF(Expenses[Amount]>0,IF(Expenses[Frequency]<>"",ROUND(IF(Expenses[Frequency]="Maandelijks",Expenses[Amount],IF(Expenses[Frequency]="Wekelijks",Expenses[Amount]*4,IF(Expenses[Frequency]="Per kwartaal",Expenses[Amount]/3,IF(Expenses[Frequency]="Om de 6 maanden",Expenses[Amount]/6,IF(Expenses[Frequency]="Jaarlijks",Expenses[Amount]/12,IF(Expenses[Frequency]="Twee-wekelijks",Expenses[Amount]*2,IF(Expenses[Frequency]="Twee-maandelijks",Expenses[Amount]/2,""))))))),0),""),"") -> $100 | G8: =IF(Expenses[Monthly Amount]<>"",Expenses[Monthly Amount]/Income,"") -> 2%
B9: Betaling voor Auto | C9: Transport | D9: $200 | E9: Maandelijks | F9: =IF(Expenses[Amount]>0,IF(Expenses[Frequency]<>"",ROUND(IF(Expenses[Frequency]="Maandelijks",Expenses[Amount],IF(Expenses[Frequency]="Wekelijks",Expenses[Amount]*4,IF(Expenses[Frequency]="Per kwartaal",Expenses[Amount]/3,IF(Expenses[Frequency]="Om de 6 maanden",Expenses[Amount]/6,IF(Expenses[Frequency]="Jaarlijks",Expenses[Amount]/12,IF(Expenses[Frequency]="Twee-wekelijks",Expenses[Amount]*2,IF(Expenses[Frequency]="Twee-maandelijks",Expenses[Amount]/2,""))))))),0),""),"") -> $200 | G9: =IF(Expenses[Monthly Amount]<>"",Expenses[Monthly Amount]/Income,"") -> 3%
B10: Hypotheek | C10: Start | D10: $1,600 | E10: Maandelijks | F10: =IF(Expenses[Amount]>0,IF(Expenses[Frequency]<>"",ROUND(IF(Expenses[Frequency]="Maandelijks",Expenses[Amount],IF(Expenses[Frequency]="Wekelijks",Expenses[Amount]*4,IF(Expenses[Frequency]="Per kwartaal",Expenses[Amount]/3,IF(Expenses[Frequency]="Om de 6 maanden",Expenses[Amount]/6,IF(Expenses[Frequency]="Jaarlijks",Expenses[Amount]/12,IF(Expenses[Frequency]="Twee-wekelijks",Expenses[Amount]*2,IF(Expenses[Frequency]="Twee-maandelijks",Expenses[Amount]/2,""))))))),0),""),"") -> $1,600 | G10: =IF(Expenses[Monthly Amount]<>"",Expenses[Monthly Amount]/Income,"") -> 28%
B11: Kabel | C11: Start | D11: $60 | E11: Maandelijks | F11: =IF(Expenses[Amount]>0,IF(Expenses[Frequency]<>"",ROUND(IF(Expenses[Frequency]="Maandelijks",Expenses[Amount],IF(Expenses[Frequency]="Wekelijks",Expenses[Amount]*4,IF(Expenses[Frequency]="Per kwartaal",Expenses[Amount]/3,IF(Expenses[Frequency]="Om de 6 maanden",Expenses[Amount]/6,IF(Expenses[Frequency]="Jaarlijks",Expenses[Amount]/12,IF(Expenses[Frequency]="Twee-wekelijks",Expenses[Amount]*2,IF(Expenses[Frequency]="Twee-maandelijks",Expenses[Amount]/2,""))))))),0),""),"") -> $60 | G11: =IF(Expenses[Monthly Amount]<>"",Expenses[Monthly Amount]/Income,"") -> 1%
B12: Filmavond | C12: Entertainment | D12: $70 | E12: Maandelijks | F12: =IF(Expenses[Amount]>0,IF(Expenses[Frequency]<>"",ROUND(IF(Expenses[Frequency]="Maandelijks",Expenses[Amount],IF(Expenses[Frequency]="Wekelijks",Expenses[Amount]*4,IF(Expenses[Frequency]="Per kwartaal",Expenses[Amount]/3,IF(Expenses[Frequency]="Om de 6 maanden",Expenses[Amount]/6,IF(Expenses[Frequency]="Jaarlijks",Expenses[Amount]/12,IF(Expenses[Frequency]="Twee-wekelijks",Expenses[Amount]*2,IF(Expenses[Frequency]="Twee-maandelijks",Expenses[Amount]/2,""))))))),0),""),"") -> $70 | G12: =IF(Expenses[Monthly Amount]<>"",Expenses[Monthly Amount]/Income,"") -> 1%
B13: Sportschoenen | C13: Div. | D13: $300 | E13: Jaarlijks | F13: =IF(Expenses[Amount]>0,IF(Expenses[Frequency]<>"",ROUND(IF(Expenses[Frequency]="Maandelijks",Expenses[Amount],IF(Expenses[Frequency]="Wekelijks",Expenses[Amount]*4,IF(Expenses[Frequency]="Per kwartaal",Expenses[Amount]/3,IF(Expenses[Frequency]="Om de 6 maanden",Expenses[Amount]/6,IF(Expenses[Frequency]="Jaarlijks",Expenses[Amount]/12,IF(Expenses[Frequency]="Twee-wekelijks",Expenses[Amount]*2,IF(Expenses[Frequency]="Twee-maandelijks",Expenses[Amount]/2,""))))))),0),""),"") -> $25 | G13: =IF(Expenses[Monthly Amount]<>"",Expenses[Monthly Amount]/Income,"") -> 0%
B14: Hondenvoer | C14: Div. | D14: $60 | E14: Maandelijks | F14: =IF(Expenses[Amount]>0,IF(Expenses[Frequency]<>"",ROUND(IF(Expenses[Frequency]="Maandelijks",Expenses[Amount],IF(Expenses[Frequency]="Wekelijks",Expenses[Amount]*4,IF(Expenses[Frequency]="Per kwartaal",Expenses[Amount]/3,IF(Expenses[Frequency]="Om de 6 maanden",Expenses[Amount]/6,IF(Expenses[Frequency]="Jaarlijks",Expenses[Amount]/12,IF(Expenses[Frequency]="Twee-wekelijks",Expenses[Amount]*2,IF(Expenses[Frequency]="Twee-maandelijks",Expenses[Amount]/2,""))))))),0),""),"") -> $60 | G14: =IF(Expenses[Monthly Amount]<>"",Expenses[Monthly Amount]/Income,"") -> 1%
B15: Huisdierenverzekering | C15: Div. | D15: $70 | E15: Jaarlijks | F15: =IF(Expenses[Amount]>0,IF(Expenses[Frequency]<>"",ROUND(IF(Expenses[Frequency]="Maandelijks",Expenses[Amount],IF(Expenses[Frequency]="Wekelijks",Expenses[Amount]*4,IF(Expenses[Frequency]="Per kwartaal",Expenses[Amount]/3,IF(Expenses[Frequency]="Om de 6 maanden",Expenses[Amount]/6,IF(Expenses[Frequency]="Jaarlijks",Expenses[Amount]/12,IF(Expenses[Frequency]="Twee-wekelijks",Expenses[Amount]*2,IF(Expenses[Frequency]="Twee-maandelijks",Expenses[Amount]/2,""))))))),0),""),"") -> $6 | G15: =IF(Expenses[Monthly Amount]<>"",Expenses[Monthly Amount]/Income,"") -> 0%
B16: Boodschappen | C16: Eten | D16: $100 | E16: Wekelijks | F16: =IF(Expenses[Amount]>0,IF(Expenses[Frequency]<>"",ROUND(IF(Expenses[Frequency]="Maandelijks",Expenses[Amount],IF(Expenses[Frequency]="Wekelijks",Expenses[Amount]*4,IF(Expenses[Frequency]="Per kwartaal",Expenses[Amount]/3,IF(Expenses[Frequency]="Om de 6 maanden",Expenses[Amount]/6,IF(Expenses[Frequency]="Jaarlijks",Expenses[Amount]/12,IF(Expenses[Frequency]="Twee-wekelijks",Expenses[Amount]*2,IF(Expenses[Frequency]="Twee-maandelijks",Expenses[Amount]/2,""))))))),0),""),"") -> $400 | G16: =IF(Expenses[Monthly Amount]<>"",Expenses[Monthly Amount]/Income,"") -> 7%
B17: Koffie | C17: Eten | D17: $25 | E17: Wekelijks | F17: =IF(Expenses[Amount]>0,IF(Expenses[Frequency]<>"",ROUND(IF(Expenses[Frequency]="Maandelijks",Expenses[Amount],IF(Expenses[Frequency]="Wekelijks",Expenses[Amount]*4,IF(Expenses[Frequency]="Per kwartaal",Expenses[Amount]/3,IF(Expenses[Frequency]="Om de 6 maanden",Expenses[Amount]/6,IF(Expenses[Frequency]="Jaarlijks",Expenses[Amount]/12,IF(Expenses[Frequency]="Twee-wekelijks",Expenses[Amount]*2,IF(Expenses[Frequency]="Twee-maandelijks",Expenses[Amount]/2,""))))))),0),""),"") -> $100 | G17: =IF(Expenses[Monthly Amount]<>"",Expenses[Monthly Amount]/Income,"") -> 2%
B18: Klimmaterialen | C18: Entertainment | D18: $170 | E18: Jaarlijks | F18: =IF(Expenses[Amount]>0,IF(Expenses[Frequency]<>"",ROUND(IF(Expenses[Frequency]="Maandelijks",Expenses[Amount],IF(Expenses[Frequency]="Wekelijks",Expenses[Amount]*4,IF(Expenses[Frequency]="Per kwartaal",Expenses[Amount]/3,IF(Expenses[Frequency]="Om de 6 maanden",Expenses[Amount]/6,IF(Expenses[Frequency]="Jaarlijks",Expenses[Amount]/12,IF(Expenses[Frequency]="Twee-wekelijks",Expenses[Amount]*2,IF(Expenses[Frequency]="Twee-maandelijks",Expenses[Amount]/2,""))))))),0),""),"") -> $14 | G18: =IF(Expenses[Monthly Amount]<>"",Expenses[Monthly Amount]/Income,"") -> 0%
B19: Lidmaatschap sportschool | C19: Div. | D19: $60 | E19: Maandelijks | F19: =IF(Expenses[Amount]>0,IF(Expenses[Frequency]<>"",ROUND(IF(Expenses[Frequency]="Maandelijks",Expenses[Amount],IF(Expenses[Frequency]="Wekelijks",Expenses[Amount]*4,IF(Expenses[Frequency]="Per kwartaal",Expenses[Amount]/3,IF(Expenses[Frequency]="Om de 6 maanden",Expenses[Amount]/6,IF(Expenses[Frequency]="Jaarlijks",Expenses[Amount]/12,IF(Expenses[Frequency]="Twee-wekelijks",Expenses[Amount]*2,IF(Expenses[Frequency]="Twee-maandelijks",Expenses[Amount]/2,""))))))),0),""),"") -> $60 | G19: =IF(Expenses[Monthly Amount]<>"",Expenses[Monthly Amount]/Income,"") -> 1%
B20: Hoofdtelefoons | C20: Entertainment | D20: $50 | E20: Jaarlijks | F20: =IF(Expenses[Amount]>0,IF(Expenses[Frequency]<>"",ROUND(IF(Expenses[Frequency]="Maandelijks",Expenses[Amount],IF(Expenses[Frequency]="Wekelijks",Expenses[Amount]*4,IF(Expenses[Frequency]="Per kwartaal",Expenses[Amount]/3,IF(Expenses[Frequency]="Om de 6 maanden",Expenses[Amount]/6,IF(Expenses[Frequency]="Jaarlijks",Expenses[Amount]/12,IF(Expenses[Frequency]="Twee-wekelijks",Expenses[Amount]*2,IF(Expenses[Frequency]="Twee-maandelijks",Expenses[Amount]/2,""))))))),0),""),"") -> $4 | G20: =IF(Expenses[Monthly Amount]<>"",Expenses[Monthly Amount]/Income,"") -> 0%
B21: Kappersbezoek | C21: Div. | D21: $70 | E21: Maandelijks | F21: =IF(Expenses[Amount]>0,IF(Expenses[Frequency]<>"",ROUND(IF(Expenses[Frequency]="Maandelijks",Expenses[Amount],IF(Expenses[Frequency]="Wekelijks",Expenses[Amount]*4,IF(Expenses[Frequency]="Per kwartaal",Expenses[Amount]/3,IF(Expenses[Frequency]="Om de 6 maanden",Expenses[Amount]/6,IF(Expenses[Frequency]="Jaarlijks",Expenses[Amount]/12,IF(Expenses[Frequency]="Twee-wekelijks",Expenses[Amount]*2,IF(Expenses[Frequency]="Twee-maandelijks",Expenses[Amount]/2,""))))))),0),""),"") -> $70 | G21: =IF(Expenses[Monthly Amount]<>"",Expenses[Monthly Amount]/Income,"") -> 1%
B22: Videogames | C22: Entertainment | D22: $100 | E22: Maandelijks | F22: =IF(Expenses[Amount]>0,IF(Expenses[Frequency]<>"",ROUND(IF(Expenses[Frequency]="Maandelijks",Expenses[Amount],IF(Expenses[Frequency]="Wekelijks",Expenses[Amount]*4,IF(Expenses[Frequency]="Per kwartaal",Expenses[Amount]/3,IF(Expenses[Frequency]="Om de 6 maanden",Expenses[Amount]/6,IF(Expenses[Frequency]="Jaarlijks",Expenses[Amount]/12,IF(Expenses[Frequency]="Twee-wekelijks",Expenses[Amount]*2,IF(Expenses[Frequency]="Twee-maandelijks",Expenses[Amount]/2,""))))))),0),""),"") -> $100 | G22: =IF(Expenses[Monthly Amount]<>"",Expenses[Monthly Amount]/Income,"") -> 2%
B23: Kleding | C23: Div. | D23: $500 | E23: Jaarlijks | F23: =IF(Expenses[Amount]>0,IF(Expenses[Frequency]<>"",ROUND(IF(Expenses[Frequency]="Maandelijks",Expenses[Amount],IF(Expenses[Frequency]="Wekelijks",Expenses[Amount]*4,IF(Expenses[Frequency]="Per kwartaal",Expenses[Amount]/3,IF(Expenses[Frequency]="Om de 6 maanden",Expenses[Amount]/6,IF(Expenses[Frequency]="Jaarlijks",Expenses[Amount]/12,IF(Expenses[Frequency]="Twee-wekelijks",Expenses[Amount]*2,IF(Expenses[Frequency]="Twee-maandelijks",Expenses[Amount]/2,""))))))),0),""),"") -> $42 | G23: =IF(Expenses[Monthly Amount]<>"",Expenses[Monthly Amount]/Income,"") -> 1%

Sheet Data (hidden)
A1: Dit blad moet verborgen blijven
A2: Categorieën | B2: Bedrag per categorie | C2: Percentage van het totaal | D2: Frequentie | E2: Besparingen
A3: Start | B3: =IF(SUMIF(Expenses[Category],"Start",Expenses[Monthly Amount])>0,SUMIF(Expenses[Category],"Start",Expenses[Monthly Amount]),NA()) -> $1,660 | C3: =IF(B3>0,B3/Income,"") -> 29% | D3: Wekelijks | E3: =Income-SUM(Expenses[Monthly Amount]) -> $2,777
A4: Entertainment | B4: =IF(SUMIF(Expenses[Category],"Entertainment",Expenses[Monthly Amount])>0,SUMIF(Expenses[Category],"Entertainment",Expenses[Monthly Amount]),NA()) -> $188 | C4: 3% | D4: Maandelijks
A5: Transport | B5: =IF(SUMIF(Expenses[Category],"Transport",Expenses[Monthly Amount])>0,SUMIF(Expenses[Category],"Transport",Expenses[Monthly Amount]),NA()) -> $350 | C5: 6% | D5: Per kwartaal
A6: Eten | B6: =IF(SUMIF(Expenses[Category],"Eten",Expenses[Monthly Amount])>0,SUMIF(Expenses[Category],"Eten",Expenses[Monthly Amount]),NA()) -> $500 | C6: 9% | D6: Om de 6 maanden
A7: Div. | B7: =IF(SUMIF(Expenses[Category],"Div.",Expenses[Monthly Amount])>0,SUMIF(Expenses[Category],"Div.",Expenses[Monthly Amount]),NA()) -> $263 | C7: 5% | D7: Jaarlijks
A8: Besparingen | B8: =IF(E3>0,E3,NA()) -> $2,777 | C8: 48% | D8: Twee-wekelijks
D9: Twee-maandelijks
B10: TOTAAL: | C10: =SUM(C3:C8) -> 100%
